bitfinex-derivatives/quotes_BTCF0:USTF0_20251210
["timestamp","ask_amount","ask_price","bid_price","bid_amount"]
[1765329808483,0.08317958,92340.0,92339.0,0.0683287]
[1765329808795,0.08117958,92340.0,92339.0,0.0693287]
[1765329809486,0.08117958,92340.0,92339.0,0.0703287]
[1765329809787,0.08117958,92340.0,92339.0,0.0713287]
[1765329809988,0.05365958,92340.0,92339.0,0.0713287]
[1765329810193,0.02413958,92340.0,92339.0,0.0713287]
[1765329810386,0.02413958,92340.0,92339.0,0.0703287]
[1765329810780,0.00108296,92340.0,92339.0,0.0703287]
[1765329811286,0.00108296,92340.0,92339.0,0.5493287]
[1765329811586,0.00016248,92349.0,92348.0,0.0683277]
[1765329811791,0.05704,92365.0,92364.0,0.0683258]
[1765329811988,0.0800808,92365.0,92364.0,0.0683258]
[1765329812188,0.0800808,92365.0,92364.0,0.0575]
[1765329812986,0.0810808,92365.0,92364.0,0.0575]
[1765329814085,0.0810808,92365.0,92364.0,0.07483]
[1765329814587,0.0800808,92365.0,92364.0,0.07483]
[1765329814787,0.0810808,92365.0,92364.0,0.07483]
[1765329814993,0.0810808,92365.0,92364.0,0.0575]
[1765329815202,0.0800808,92365.0,92364.0,0.0585]
[1765329815395,0.0800808,92365.0,92364.0,0.001]
[1765329815396,0.08060444,92365.0,92364.0,0.001]
[1765329817396,0.0678665,92358.0,92357.0,0.0683266]
[1765329817992,0.05704,92356.0,92355.0,0.00016248]
[1765329818194,0.0286665,92358.0,92340.0,0.01733]
[1765329818397,0.0286665,92358.0,92328.0,0.01733]
[1765329818398,0.05704,92337.0,92328.0,0.01733]
[1765329818592,0.05704,92329.0,92328.0,0.1175]
[1765329820396,0.05704,92329.0,92328.0,0.1185]
[1765329822398,0.05704,92329.0,92328.0,0.001]
[1765329822589,0.08061128,92329.0,92328.0,0.001]
[1765329822897,0.05704,92329.0,92328.0,0.001]
[1765329823091,0.08061114,92329.0,92328.0,0.001]
[1765329823307,0.05704,92329.0,92328.0,0.001]
[1765329824004,0.05704,92329.0,92328.0,0.07583]
[1765329824204,0.05704,92329.0,92328.0,0.001]
[1765329824898,0.05704,92320.0,92319.0,0.06849358]
[1765329825206,0.05704,92320.0,92319.0,0.10849358]
[1765329825403,0.067871,92320.0,92319.0,0.04016248]
[1765329825810,0.067871,92320.0,92319.0,0.00016248]
[1765329825994,0.067871,92320.0,92319.0,0.03921358]
[1765329826307,0.067871,92320.0,92319.0,0.06849358]
[1765329826494,0.05704,92320.0,92319.0,0.06949358]
[1765329827811,0.05704,92320.0,92319.0,0.07149358]
[1765329833202,0.10335335,92330.0,92327.0,0.0670701]
[1765329833203,0.0688701,92328.0,92327.0,0.0670701]
[1765329833605,0.05804,92328.0,92327.0,0.0670701]
[1765329834208,0.05804,92328.0,92327.0,0.0680701]
[1765329834806,0.06887,92328.0,92327.0,0.0680701]
[1765329835007,0.06887,92328.0,92327.0,0.05724]
[1765329835202,0.07833,92328.0,92327.0,0.001]
[1765329836013,0.0688709,92321.0,92320.0,0.0670709]
[1765329837715,0.0688709,92321.0,92320.0,0.0690709]
[1765329837913,0.0688709,92321.0,92320.0,0.0700709]
[1765329838518,0.05804,92321.0,92320.0,0.0700709]
[1765329838721,0.0393903,92326.0,92325.0,0.0670704]
[1765329839212,0.0688703,92326.0,92325.0,0.0670704]
[1765329840019,0.0688703,92326.0,92325.0,0.0680704]
[1765329842019,0.0688703,92326.0,92325.0,0.05724]
[1765329843417,0.09244831,92326.0,92325.0,0.05724]
[1765329845919,0.02357801,92326.0,92325.0,0.05724]
[1765329846417,0.05213801,92326.0,92325.0,0.05724]
[1765329846626,0.08161801,92326.0,92325.0,0.05724]
[1765329847624,0.05213801,92326.0,92325.0,0.05724]
[1765329847824,0.08161801,92326.0,92325.0,0.05724]
[1765329848212,0.02357801,92326.0,92325.0,0.05724]
[1765329848417,0.08161801,92326.0,92325.0,0.05724]
[1765329849613,0.02357801,92326.0,92325.0,0.14724]
[1765329849822,0.00016248,92338.0,92337.0,0.067069]
[1765329851419,0.00316248,92338.0,92337.0,0.067069]
[1765329852230,0.00216248,92338.0,92337.0,0.067069]
[1765329852425,0.00316248,92338.0,92337.0,0.079069]
[1765329853330,0.00116248,92338.0,92337.0,0.085069]
[1765329853834,0.00116248,92338.0,92337.0,0.079069]
[1765329854040,0.00216248,92338.0,92337.0,0.087069]
[1765329854534,0.15967879,92350.0,92349.0,0.0676776]
[1765329854738,0.05638,92350.0,92349.0,0.0676776]
[1765329855640,0.05638,92350.0,92349.0,0.0686776]
[1765329856539,0.05667,92354.0,92353.0,0.0684071]
[1765329858430,0.05667,92354.0,92353.0,0.0694071]
[1765329858829,0.05667,92354.0,92353.0,0.03064]
[1765329859038,0.05667,92347.0,92346.0,0.0684079]
[1765329859639,0.05667,92347.0,92346.0,0.02964]
[1765329859835,0.05667,92347.0,92346.0,0.05758]
[1765329860343,0.05667,92347.0,92346.0,0.02964]
[1765329860738,0.05667,92347.0,92346.0,0.05758]
[1765329863230,0.05667,92347.0,92346.0,0.05858]
[1765329863429,0.05639,92347.0,92346.0,0.07456]
[1765329864032,0.05639,92347.0,92346.0,0.07556]
[1765329865350,0.05639,92347.0,92346.0,0.07456]
[1765329865538,0.05639,92347.0,92346.0,0.07756]
[1765329866546,0.05639,92347.0,92346.0,0.07556]
[1765329866747,0.05639,92347.0,92346.0,0.07756]
[1765329867366,0.05639,92347.0,92346.0,0.07556]
[1765329867545,0.05639,92347.0,92346.0,0.07756]
[1765329868868,0.05639,92347.0,92346.0,0.07556]
[1765329869152,0.05639,92347.0,92346.0,0.07656]
[1765329869957,0.05639,92347.0,92346.0,0.07556]
[1765329870156,0.05639,92347.0,92346.0,0.07656]
[1765329870545,0.05503,92354.0,92353.0,0.0680071]
[1765329870747,0.07839059,92354.0,92353.0,0.0680071]
[1765329872250,0.07839059,92354.0,92353.0,0.0690071]
[1765329873251,0.05503,92354.0,92353.0,0.0690071]
[1765329873558,0.07840325,92354.0,92353.0,0.0690071]
[1765329873759,0.07840325,92354.0,92353.0,0.0680071]
[1765329873960,0.07840325,92354.0,92353.0,0.0690071]
[1765329875563,0.07840325,92354.0,92353.0,0.0700071]
[1765329876956,0.07840325,92354.0,92353.0,0.0690071]
[1765329877165,0.07840325,92354.0,92353.0,0.0680071]
[1765329877861,0.07840325,92354.0,92353.0,0.0690071]
[1765329898274,0.07840325,92354.0,92353.0,0.0700071]
[1765329899072,0.07840325,92354.0,92353.0,0.0710071]
[1765329900972,0.13644102,92354.0,92353.0,0.03055]
[1765329901178,0.13644102,92354.0,92353.0,0.03155]
[1765329901375,0.07840325,92354.0,92353.0,0.002]
[1765329901577,0.0681485,92341.0,92340.0,0.00016248]
[1765329901877,0.0174,92335.0,92325.0,0.05723]
[1765329902080,0.05732,92329.0,92328.0,0.06806]
[1765329902282,0.08069325,92329.0,92328.0,0.09806]
[1765329902469,0.08069325,92329.0,92328.0,0.06858]
[1765329902882,0.08069325,92329.0,92328.0,0.09806]
[1765329903384,0.05732,92329.0,92328.0,0.09806]
[1765329903881,0.05732,92329.0,92328.0,0.05775]
[1765329904582,0.05832,92329.0,92328.0,0.041]
[1765329904878,0.08242903,92329.0,92328.0,0.025]
[1765329905785,0.07281,92320.0,92319.0,0.00016248]
[1765329905977,0.10674007,92320.0,92319.0,2.48e-06]
[1765329906182,0.05732,92299.0,92298.0,0.05840383]
[1765329906368,0.05732,92296.0,92295.0,0.05840383]
[1765329906686,0.05732,92291.0,92290.0,0.00108355]
[1765329906980,0.05732,92291.0,92290.0,0.13831355]
[1765329907184,0.02944,92291.0,92290.0,0.13831355]
[1765329907368,0.05748248,92300.0,92299.0,0.0680634]
[1765329908875,0.05848248,92300.0,92299.0,0.0760634]
[1765329910075,0.05948248,92300.0,92299.0,0.0870634]
[1765329936296,0.00216248,92300.0,92299.0,0.0870634]
[1765329936704,0.05969248,92300.0,92299.0,0.0870634]
[1765329936906,0.03090248,92300.0,92299.0,0.0870634]
[1765329937907,0.00216248,92300.0,92299.0,0.0870634]
[1765329938202,0.05969248,92300.0,92299.0,0.0870634]
[1765329939906,0.08347025,92300.0,92299.0,0.0870634]
[1765329941607,0.09057025,92300.0,92299.0,0.0575834]
[1765329941907,0.09057025,92300.0,92299.0,0.019]
[1765329941908,0.10140355,92300.0,92299.0,0.019]
[1765329942113,0.0683644,92291.0,92290.0,0.00108355]
[1765329942297,0.08130777,92291.0,92290.0,0.00108355]
[1765329943513,0.08330777,92291.0,92290.0,0.01408355]
[1765329944012,0.08130777,92291.0,92290.0,0.00108355]
[1765329944214,0.08230777,92291.0,92290.0,0.01208355]
[1765329945216,0.08330777,92291.0,92290.0,0.01608355]
[1765329945712,0.08330777,92291.0,92290.0,0.04491355]
[1765329946012,0.08330777,92291.0,92290.0,0.07405355]
[1765329946401,0.08330777,92291.0,92290.0,0.04491355]
[1765329948216,0.08330777,92291.0,92290.0,0.01608355]
[1765329953320,0.05953,92291.0,92290.0,0.01608355]
[1765329953816,0.08325825,92291.0,92290.0,0.01608355]
[1765329954520,0.08325552,92291.0,92290.0,0.01608355]
[1765329957315,0.05953,92291.0,92290.0,0.01608355]
[1765329960021,0.05953,92291.0,92290.0,0.04490355]
[1765329960710,0.05953,92291.0,92290.0,0.01608355]
[1765329961619,0.05953,92291.0,92290.0,0.04490355]
[1765329961822,0.002,92291.0,92290.0,0.07287355]
[1765329963326,0.00016248,92300.0,92299.0,0.0676234]
[1765329964924,0.00116248,92300.0,92299.0,0.0686234]
[1765329965428,0.00216248,92300.0,92299.0,0.0716234]
[1765329965726,0.05709,92316.0,92315.0,0.0108316]
[1765329965920,0.0808584,92316.0,92315.0,0.0676216]
[1765329966817,0.0808584,92316.0,92315.0,0.0855416]
[1765329967022,0.00016248,92325.0,92324.0,0.0676205]
[1765329967622,0.02927248,92325.0,92324.0,0.0676205]
[1765329967825,0.05725248,92325.0,92324.0,0.0676205]
[1765329968427,0.07325248,92325.0,92324.0,0.0706205]
[1765329969115,0.08408288,92325.0,92324.0,0.0706205]
[1765329969317,0.10046288,92325.0,92324.0,0.0706205]
[1765329969633,0.10046288,92325.0,92324.0,0.03182]
[1765329970324,0.10046288,92325.0,92324.0,0.003]
[1765329972129,0.10046288,92325.0,92315.0,0.00016248]
[1765329972130,0.0853814,92316.0,92315.0,0.00016248]
[1765329973526,0.0943814,92316.0,92315.0,0.00116248]
[1765329974229,0.0983814,92316.0,92315.0,0.00216248]
[1765329976028,0.0983814,92316.0,92315.0,0.05920248]
[1765329978940,0.12202196,92316.0,92315.0,0.05920248]
[1765329979834,0.09602056,92316.0,92315.0,0.05920248]
[1765329980136,0.013,92316.0,92315.0,0.05920248]
[1765329980935,0.07238,92316.0,92315.0,0.05920248]
[1765329981338,0.08978,92316.0,92315.0,0.05920248]
[1765329981538,0.08978,92316.0,92315.0,0.00216248]
[1765329981736,0.08978,92316.0,92315.0,0.03050248]
[1765329981939,0.08978,92316.0,92315.0,0.05920248]
[1765329983144,0.08978,92316.0,92315.0,0.00216248]
[1765329983445,0.11342126,92316.0,92315.0,0.05693248]
[1765329983739,0.11342126,92316.0,92315.0,0.00216248]
[1765329987527,0.11342126,92316.0,92315.0,0.05693248]
[1765329992238,0.09602126,92316.0,92315.0,0.05693248]
[1765329995536,0.09602126,92316.0,92315.0,0.00216248]
[1765330001442,0.09602126,92316.0,92315.0,0.05693248]
[1765330003447,0.09602126,92316.0,92315.0,0.02985248]
[1765330003754,0.09602126,92316.0,92315.0,0.00216248]
[1765330004536,0.09602126,92316.0,92315.0,0.07353248]
[1765330004738,0.09602126,92316.0,92315.0,0.05693248]
[1765330005543,0.09579158,92316.0,92315.0,0.05693248]
[1765330010844,0.09579158,92316.0,92315.0,0.00216248]
[1765330012057,0.09579158,92316.0,92315.0,0.05693248]
[1765330015555,0.09579158,92316.0,92315.0,0.00216248]
[1765330015755,0.0679731,92302.0,92301.0,0.11795617]
[1765330016256,0.05714,92301.0,92300.0,0.05944]
[1765330016450,0.08053682,92301.0,92300.0,0.05944]
[1765330017757,0.0397224,92308.0,92307.0,0.0702723]
[1765330018058,0.08053015,92308.0,92307.0,0.0702723]
[1765330019255,0.08953015,92308.0,92307.0,0.0712723]
[1765330019642,0.09053015,92308.0,92307.0,0.0722723]
[1765330021356,0.09053015,92308.0,92307.0,0.06144]
[1765330021949,0.09053015,92308.0,92307.0,0.002]
[1765330022754,0.09053015,92308.0,92307.0,0.03146]
[1765330022953,0.09053015,92308.0,92307.0,0.06144]
[1765330026658,0.03339015,92308.0,92307.0,0.06144]
[1765330026865,0.01,92308.0,92307.0,0.06144]
[1765330027051,0.03891,92308.0,92307.0,0.06144]
[1765330027566,0.01,92308.0,92307.0,0.06144]
[1765330029076,0.05652248,92325.0,92324.0,0.0678805]
[1765330029265,0.07999971,92325.0,92324.0,0.0678805]
[1765330029858,0.09083011,92325.0,92324.0,0.0678805]
[1765330030753,0.09083011,92325.0,92324.0,0.0688805]
[1765330030959,0.09483011,92325.0,92324.0,0.0688805]
[1765330031365,0.10483011,92325.0,92324.0,0.0698805]
[1765330037161,0.09399971,92325.0,92324.0,0.0698805]
[1765330041871,0.03763971,92325.0,92324.0,0.0698805]
[1765330042268,0.09399971,92325.0,92324.0,0.0698805]
[1765330042667,0.03763971,92325.0,92324.0,0.0698805]
[1765330042970,0.06654971,92325.0,92324.0,0.0698805]
[1765330043565,0.04307248,92325.0,92324.0,0.0698805]
[1765330043977,0.07052248,92325.0,92324.0,0.0698805]
[1765330047975,0.04307248,92325.0,92324.0,0.0698805]
[1765330048681,0.07119248,92325.0,92324.0,0.0698805]
[1765330050871,0.07119248,92325.0,92324.0,0.0858505]
[1765330053084,0.07119248,92325.0,92324.0,0.0698805]
[1765330053581,0.09465227,92325.0,92324.0,0.0698805]
[1765330054169,0.09465227,92325.0,92324.0,0.0679105]
[1765330056382,0.09465227,92325.0,92324.0,0.002]
[1765330056674,0.09465227,92325.0,92295.0,0.11320293]
[1765330056675,0.05554,92309.0,92308.0,0.05625]
[1765330057881,0.05554,92309.0,92308.0,0.05725]
[1765330058084,0.06054,92309.0,92308.0,0.05825]
[1765330059284,0.06054,92309.0,92308.0,0.09825]
[1765330059879,0.08378682,92309.0,92308.0,0.09825]
[1765330060384,0.08378686,92309.0,92308.0,0.09825]
[1765330063286,0.06054,92309.0,92308.0,0.09825]
[1765330065574,0.06054,92309.0,92308.0,0.002]
[1765330066975,0.06054,92309.0,92308.0,0.03023]
[1765330074383,0.06054,92309.0,92308.0,0.05825]
[1765330079303,0.06054,92309.0,92308.0,0.002]
[1765330079998,0.06054,92309.0,92308.0,0.05967]
[1765330080199,0.08376995,92309.0,92308.0,0.05967]
[1765330080595,0.08376995,92309.0,92308.0,0.002]
[1765330080800,0.08376995,92309.0,92308.0,0.05967]
[1765330081001,0.08376995,92309.0,92308.0,0.002]
[1765330082101,0.08376995,92309.0,92308.0,0.05967]
[1765330082996,0.08376995,92309.0,92308.0,0.03149]
[1765330083189,0.08376995,92309.0,92308.0,0.002]
[1765330083391,0.0855738,92296.0,92295.0,0.05767]
[1765330083587,0.0684144,92291.0,92290.0,0.05875355]
[1765330083792,0.05758,92291.0,92290.0,0.13875355]
[1765330084201,0.08079898,92291.0,92290.0,0.13875355]
[1765330084496,0.05758,92291.0,92290.0,0.13875355]
[1765330085196,0.040264,92294.0,92293.0,0.05767]
[1765330085395,0.09163103,92294.0,92293.0,0.08767]
[1765330086296,0.09263103,92294.0,92293.0,0.09367]
[1765330086498,0.09363103,92294.0,92293.0,0.09867]
[1765330088302,0.08279703,92294.0,92293.0,0.09867]
[1765330091491,0.02521703,92294.0,92293.0,0.09867]
[1765330092006,0.05296703,92294.0,92293.0,0.09867]
[1765330092400,0.08093703,92294.0,92293.0,0.09867]
[1765330093401,0.05772,92294.0,92293.0,0.09867]
[1765330094806,0.05772,92294.0,92293.0,0.041]
[1765330095106,0.05772,92294.0,92293.0,0.09546]
[1765330095307,0.05772,92294.0,92293.0,0.0681]
[1765330095504,0.05772,92294.0,92293.0,0.09546]
[1765330101008,0.02975,92294.0,92293.0,0.09546]
[1765330101511,0.05772,92294.0,92293.0,0.09546]
[1765330108310,0.002,92294.0,92293.0,0.09546]
[1765330109014,0.0586,92294.0,92293.0,0.09546]
[1765330109711,0.002,92294.0,92293.0,0.09546]
[1765330110018,0.02959,92294.0,92293.0,0.09546]
[1765330110320,0.002,92294.0,92293.0,0.09546]
[1765330110818,0.05816205,92317.0,92304.0,0.07451]
[1765330111018,0.08269382,92314.0,92304.0,0.07451]
[1765330111519,0.0108319,92313.0,92304.0,0.07451]
[1765330111906,0.08269382,92314.0,92304.0,0.07451]
[1765330112113,0.00416248,92305.0,92304.0,0.07551]
[1765330112712,0.00516248,92305.0,92304.0,0.07651]
[1765330114514,0.00516248,92305.0,92304.0,0.1349488]
[1765330115320,0.00516248,92305.0,92304.0,0.07651]
[1765330116323,0.00516248,92305.0,92304.0,0.1349488]
[1765330117321,0.00516248,92305.0,92304.0,0.07651]
[1765330117714,0.00516248,92305.0,92304.0,0.1349488]
[1765330118021,0.00516248,92305.0,92304.0,0.07651]
[1765330122620,0.00516248,92305.0,92304.0,0.16651]
[1765330123527,0.16758482,92320.0,92319.0,0.0686011]
[1765330123728,0.10817624,92320.0,92319.0,0.0686011]
[1765330124722,0.11517624,92320.0,92319.0,0.0696011]
[1765330125428,0.11817624,92320.0,92319.0,0.0706011]
[1765330130229,0.08988524,92320.0,92319.0,0.0706011]
[1765330131526,0.10734524,92320.0,92319.0,0.0706011]
[1765330136232,0.10734524,92320.0,92319.0,0.05977]
[1765330139428,0.08988524,92320.0,92319.0,0.05977]
[1765330139936,0.10702524,92320.0,92319.0,0.05977]
[1765330140830,0.10702524,92320.0,92319.0,0.002]
[1765330144238,0.10702524,92320.0,92319.0,0.03093]
[1765330148444,0.10702524,92320.0,92310.0,0.00016248]
[1765330148445,0.010832,92311.0,92310.0,0.00016248]
[1765330148645,0.0108328,92304.0,92303.0,0.0584388]
[1765330148851,0.0692037,92297.0,92296.0,0.05627]
[1765330149036,0.09252981,92297.0,92296.0,0.05627]
[1765330149245,0.0692037,92297.0,92296.0,0.05627]
[1765330150559,0.0702037,92297.0,92296.0,0.06327]
[1765330151753,0.0712037,92297.0,92296.0,0.07027]
[1765330164272,0.0712037,92297.0,92296.0,0.0811038]
[1765330165873,0.03129,92297.0,92296.0,0.0811038]
[1765330168073,0.00016248,92306.0,92305.0,0.05706]
[1765330169076,0.00016248,92306.0,92305.0,0.05806]
[1765330169376,0.00116248,92306.0,92305.0,0.05806]
[1765330171074,0.00316248,92306.0,92305.0,0.05806]
[1765330176674,0.00316248,92306.0,92305.0,0.51806]
[1765330176875,0.0108309,92321.0,92305.0,0.51806]
[1765330176876,0.0665006,92324.0,92323.0,0.0678906]
[1765330177180,0.08986721,92324.0,92323.0,0.0678906]
[1765330177980,0.09586721,92324.0,92323.0,0.0688906]
[1765330178181,0.09986721,92324.0,92323.0,0.0698906]
[1765330178373,0.08903661,92324.0,92323.0,0.0698906]
[1765330183478,0.06567,92324.0,92323.0,0.0698906]
[1765330185978,0.06567,92324.0,92323.0,0.002]
[1765330185979,0.0835,92324.0,92323.0,0.002]
[1765330186175,0.0835,92324.0,92323.0,0.03144]
[1765330186381,0.0835,92324.0,92323.0,0.002]
[1765330188888,0.0835,92324.0,92323.0,0.03144]
[1765330189280,0.08903737,92324.0,92323.0,0.05906]
[1765330189479,0.06567,92324.0,92323.0,0.05906]
[1765330191381,0.08904224,92324.0,92323.0,0.05906]
[1765330195590,0.06048224,92324.0,92323.0,0.05906]
[1765330195986,0.08913224,92324.0,92323.0,0.05906]
[1765330200302,0.00016248,92333.0,92332.0,0.0822096]
[1765330200792,0.05707,92330.0,92329.0,0.0674498]
[1765330200994,0.07452,92324.0,92323.0,0.05862]
[1765330201598,0.07452,92324.0,92323.0,0.05762]
[1765330202094,0.07452,92324.0,92323.0,0.05662]
[1765330202598,0.08052,92324.0,92323.0,0.05762]
[1765330208693,0.08052,92324.0,92323.0,0.001]
[1765330208991,0.08052,92324.0,92323.0,0.05762]
[1765330209592,0.08052,92324.0,92323.0,0.02932]
[1765330211602,0.08052,92324.0,92323.0,0.001]
[1765330211803,0.08052,92324.0,92314.0,0.00016248]
[1765330211804,0.05829,92315.0,92314.0,0.00016248]
[1765330212304,0.08149303,92315.0,92314.0,0.05591248]
[1765330213306,0.08149303,92315.0,92314.0,0.05691248]
[1765330213605,0.05929,92315.0,92314.0,0.05791248]
[1765330214107,0.05929,92315.0,92314.0,0.00216248]
[1765330214402,0.05929,92315.0,92304.0,0.02755]
[1765330214403,0.0691227,92305.0,92304.0,0.02755]
[1765330214599,0.01591,92308.0,92295.0,0.0108339]
[1765330214600,0.069123,92303.0,92302.0,0.05575]
[1765330214801,0.069123,92303.0,92302.0,0.05755]
[1765330215006,0.069123,92303.0,92302.0,0.03]
[1765330215406,0.069123,92303.0,92302.0,0.05755]
[1765330215706,0.069123,92303.0,92302.0,0.08575]
[1765330215707,0.09231207,92303.0,92302.0,0.08575]
[1765330216098,0.069123,92303.0,92302.0,0.08875]
[1765330217506,0.070123,92303.0,92302.0,0.09075]
[1765330217704,0.070123,92303.0,92302.0,0.035]
[1765330217904,0.070123,92303.0,92302.0,0.005]
[1765330217905,0.09329607,92303.0,92302.0,0.005]
[1765330222109,0.09329607,92303.0,92302.0,0.06075]
[1765330222901,0.09329607,92303.0,92302.0,0.005]
[1765330223909,0.0668244,92291.0,92290.0,0.02867355]
[1765330224107,0.0668244,92291.0,92290.0,0.07867355]
[1765330224310,0.0668244,92291.0,92290.0,0.10689355]
[1765330224611,0.0668244,92291.0,92290.0,0.11772805]
[1765330225113,0.0678244,92291.0,92290.0,0.12872805]
[1765330225716,0.0678244,92291.0,92290.0,0.13672805]
[1765330226015,0.0688244,92291.0,92290.0,0.13672805]
[1765330227517,0.0688244,92291.0,92290.0,0.09767355]
[1765330227720,0.0688244,92291.0,92290.0,0.12589355]
[1765330230218,0.0688244,92291.0,92290.0,0.07008355]
[1765330230523,0.0688244,92291.0,92270.0,0.0666467]
[1765330230524,0.0668267,92271.0,92270.0,0.0666467]
[1765330230719,0.0668267,92271.0,92270.0,0.1566467]
[1765330230720,0.05599,92271.0,92270.0,0.1566467]
[1765330230920,0.05599,92271.0,92270.0,0.1701067]
[1765330231124,0.24704134,92280.0,92279.0,0.05581]
[1765330231324,0.08173818,92280.0,92279.0,0.10581]
[1765330231624,0.06698818,92280.0,92279.0,0.10581]
[1765330233120,0.06798818,92280.0,92279.0,0.10781]
[1765330233318,0.06898818,92280.0,92279.0,0.11581]
[1765330235520,0.05815248,92280.0,92279.0,0.11581]
[1765330236920,0.00216248,92280.0,92279.0,0.11581]
[1765330237121,0.05815248,92280.0,92279.0,0.11581]
[1765330237325,0.03100248,92280.0,92279.0,0.11581]
[1765330237514,0.05815248,92280.0,92279.0,0.11581]
[1765330238017,0.03100248,92280.0,92279.0,0.11581]
[1765330238217,0.05815248,92280.0,92279.0,0.11581]
[1765330241726,0.07348248,92280.0,92279.0,0.11581]
[1765330242719,0.07348248,92280.0,92279.0,0.06]
[1765330243025,0.07348248,92280.0,92279.0,0.01]
[1765330243528,0.09665309,92280.0,92279.0,0.01]
[1765330244426,0.05599,92268.0,92267.0,0.0666471]
[1765330244616,0.05599,92268.0,92267.0,0.1466471]
[1765330245219,0.0668271,92268.0,92267.0,0.1466471]
[1765330245620,0.0678271,92268.0,92267.0,0.1476471]
[1765330246130,0.0688271,92268.0,92267.0,0.1536471]
[1765330247519,0.0688271,92268.0,92267.0,0.14281]
[1765330247918,0.0688271,92268.0,92267.0,0.06281]
[1765330251727,0.0688271,92268.0,92267.0,0.007]
[1765330252226,0.0688271,92268.0,92267.0,0.06281]
[1765330252628,0.0688271,92268.0,92267.0,0.007]
[1765330253336,0.0688271,92268.0,92267.0,0.03474]
[1765330253529,0.0688271,92268.0,92267.0,0.007]
[1765330254733,0.0688271,92268.0,92246.0,0.05474]
[1765330254734,0.0664395,92247.0,92246.0,0.05474]
[1765330254930,0.0664395,92247.0,92246.0,0.02774]
[1765330255125,0.0664401,92242.0,92241.0,0.05474]
[1765330255320,0.0664401,92242.0,92241.0,0.09474]
[1765330255831,0.06654922,92242.0,92241.0,0.09474]
[1765330256230,0.06754922,92242.0,92241.0,0.10274]
[1765330256830,0.06754922,92242.0,92241.0,0.06274]
[1765330257230,0.06754922,92242.0,92241.0,0.05474]
[1765330257231,0.06654922,92242.0,92241.0,0.05474]
[1765330257427,0.06854922,92242.0,92241.0,0.007]
[1765330257830,0.06854922,92242.0,92240.0,0.00108413]
[1765330257831,0.0556,92241.0,92240.0,0.00108413]
[1765330258031,0.0556,92224.0,92223.0,0.05474]
[1765330258234,0.05571916,92224.0,92215.0,0.05952955]
[1765330258445,0.05571916,92224.0,92200.0,0.135923]
[1765330258446,0.00947,92205.0,92200.0,0.07771445]
[1765330258629,0.0556,92190.0,92189.0,0.05474]
[1765330259040,0.0556,92190.0,92189.0,0.08512506]
[1765330259539,0.05567804,92190.0,92189.0,0.08512506]
[1765330259737,0.05567804,92190.0,92189.0,0.08612506]
[1765330259738,0.06267804,92190.0,92189.0,0.08612506]
[1765330259930,0.06267804,92190.0,92189.0,0.03138506]
[1765330260840,0.0391185,92171.0,92170.0,0.07207]
[1765330261045,0.03922849,92171.0,92170.0,0.07207]
[1765330261247,0.0664491,92166.0,92136.0,0.01733]
[1765330261435,0.0391204,92155.0,92152.0,0.01733]
[1765330261737,0.0664504,92155.0,92154.0,0.05474]
[1765330261934,0.06654341,92155.0,92154.0,0.05474]
[1765330262333,0.06654341,92155.0,92154.0,0.14474]
[1765330262533,0.06654341,92155.0,92154.0,0.05474]
[1765330262727,0.06854341,92155.0,92154.0,0.05474]
[1765330263132,9.301e-05,92155.0,92154.0,0.05474]
[1765330263332,0.00109301,92155.0,92154.0,0.05474]
[1765330264141,0.00209301,92155.0,92154.0,0.05474]
[1765330265650,0.00209301,92155.0,92154.0,0.30474]
[1765330266351,0.00209301,92155.0,92154.0,0.08474]
[1765330266646,0.00209301,92155.0,92154.0,0.40474]
[1765330266942,0.00099999,92170.0,92154.0,0.35]
[1765330267144,0.00016266,92180.0,92179.0,0.05618]
[1765330267845,0.00028058,92180.0,92179.0,0.05618]
[1765330268834,0.00828058,92180.0,92179.0,0.05618]
[1765330269549,0.01128058,92180.0,92179.0,0.05618]
[1765330270049,5.8e-07,92180.0,92179.0,0.05618]
[1765330270445,5.8e-07,92180.0,92179.0,0.40618]
[1765330271042,6.797e-05,92180.0,92179.0,0.40618]
[1765330271942,0.00016276,92189.0,92188.0,0.05618]
[1765330272542,0.00016276,92189.0,92188.0,0.0670265]
[1765330272746,0.0108448,92203.0,92202.0,0.05618]
[1765330272954,0.0678148,92203.0,92202.0,0.05618]
[1765330273147,0.06104,92219.0,92192.0,0.01634]
[1765330273148,0.0678159,92193.0,92192.0,0.07252]
[1765330273342,0.05697,92193.0,92192.0,0.07252]
[1765330273742,0.0678159,92193.0,92192.0,0.07252]
[1765330274243,0.05697,92193.0,92192.0,0.07252]
[1765330275050,0.06797,92193.0,92192.0,0.07252]
[1765330275844,0.07197,92193.0,92192.0,0.07352]
[1765330277351,0.07197,92193.0,92192.0,0.001]
[1765330277547,0.07197,92193.0,92192.0,0.00076927]
[1765330277743,0.0764369,92184.0,92183.0,0.00016276]
[1765330278957,0.0764369,92184.0,92183.0,0.02742276]
[1765330279154,0.0788169,92184.0,92183.0,0.05734276]
[1765330279457,0.0218469,92184.0,92183.0,0.05734276]
[1765330279649,0.0498569,92184.0,92183.0,0.05734276]
[1765330279848,0.03601,92184.0,92183.0,0.05634276]
[1765330280049,0.012,92184.0,92183.0,0.05734276]
[1765330280449,0.06897,92184.0,92183.0,0.05734276]
[1765330281459,0.06797,92184.0,92183.0,0.05734276]
[1765330281656,0.08421,92184.0,92183.0,0.00116276]
[1765330282155,0.11136556,92184.0,92183.0,0.00116276]
[1765330282364,0.06516556,92184.0,92183.0,0.05734276]
[1765330282563,0.007,92184.0,92183.0,0.05634276]
[1765330282857,0.007,92184.0,92183.0,0.05734276]
[1765330282858,0.01,92184.0,92183.0,0.05734276]
[1765330283658,0.009,92184.0,92183.0,0.05734276]
[1765330284245,0.008,92184.0,92183.0,0.05734276]
[1765330284447,0.009,92184.0,92183.0,0.05734276]
[1765330284863,0.008,92184.0,92183.0,0.41734276]
[1765330285255,0.005,92184.0,92183.0,0.07734276]
[1765330285456,0.005,92184.0,92183.0,0.05734276]
[1765330285762,0.005,92184.0,92183.0,0.32734276]
[1765330285958,0.005,92184.0,92183.0,0.05734276]
[1765330286163,0.005,92184.0,92183.0,0.05834276]
[1765330286464,0.004,92184.0,92183.0,0.05834276]
[1765330286960,0.001,92184.0,92183.0,0.05834276]
[1765330287163,0.03031761,92184.0,92183.0,0.44834276]